[Event "55th Biel Festival MTO 2022"]
[Site "Biel"]
[Date "2022.07.15"]
[Round "1.26"]
[White "Raja Harshit"]
[Black "Kornitzky Tino"]
[Result "0-1"]
[ECO "C77"]
[WhiteElo "2477"]
[BlackElo "2141"]
[Annotator "ChessBase"]
[PlyCount "96"]
[EventDate "2022.07.13"]
[EventType "swiss"]
[EventCountry "SUI"]
[SourceTitle "playchess.com"]
[Source "ChessBase"]
[SourceQuality "1"]
[TimeControl "40/5400+30:1800+30"]

1. e4 {[%emt 0:00:12]} e5 {[%emt 0:00:31]} 2. Nf3 {[%emt 0:00:09]} Nc6 {[%emt 0:00:04]} 3. Bb5 {[%emt 0:00:29]} a6 {[%emt 0:00:12]} 4. Ba4 {[%emt 0:00:05]} Be7 {[%emt 0:00:52]} 5. O-O {[%emt 0:02:27]} Nf6 {[%emt 0:01:49]} 6. d3 {[%emt 0:01:30]} b5 {[%emt 0:01:11]} 7. Bb3 {[%emt 0:00:07]} O-O {[%emt 0:00:19]} 8. Nc3 {[%emt 0:00:06]} d6 {[%emt 0:05:16]} 9. a3 {[%emt 0:01:35]} Na5 {[%emt 0:03:42]} 10. Ba2 {[%emt 0:00:11]} c5 {[%emt 0:00:08]} 11. b4 {[%emt 0:00:26]} Nb7 {[%emt 0:02:12]} 12. Nd5 {[%emt 0:02:34]} Be6 {[%emt 0:08:32]} 13. Nxf6+ {[%emt 0:06:50]} Bxf6 {[%emt 0:01:54]} 14. Bxe6 {[%emt 0:00:06]} fxe6 {[%emt 0:00:08]} 15. c3 {[%emt 0:00:10]} d5 {[%emt 0:08:10]} 16. Qe2 {[%emt 0:09:57]} Qc7 {[%emt 0:02:36]} 17. Re1 {[%emt 0:22:12]} Rfe8 {[%emt 0:11:01]} 18. h4 {[%emt 0:00:30]} c4 {[%emt 0:01:09]} 19. dxc4 {[%emt 0:12:31]} bxc4 {[%emt 0:24:34]} 20. Bg5 {[%emt 0:00:30]} Nd6 {[%emt 0:00:30]} 21. exd5 {[%emt 0:00:30]} exd5 {[%emt 0:00:30]} 22. Qd2 {[%emt 0:00:30]} Qf7 {[%emt 0:00:30]} 23. Rad1 {[%emt 0:00:30]} Ne4 {[%emt 0:00:30]} 24. Qxd5 {[%emt 0:00:30]} Nxc3 {[%emt 0:00:30]} 25. Qxf7+ {[%emt 0:00:30]} Kxf7 {[%emt 0:00:30]} 26. Rc1 {[%emt 0:00:30]} Nb5 {[%emt 0:00:30]} 27. Rxc4 {[%emt 0:00:11]} Nxa3 {[%emt 0:00:29]} 28. Rc7+ {[%emt 0:00:15]} Kg6 {[%emt 0:02:32]} 29. g4 {[%emt 0:07:03]} h5 {[%emt 0:02:08]} 30. gxh5+ {[%emt 0:01:17]} Kxh5 {[%emt 0:00:29]} 31. Rec1 {[%emt 0:06:21]} Nb5 {[%emt 0:04:23]} 32. R7c6 {[%emt 0:00:55]} Bxg5 {[%emt 0:02:31]} 33. Nxg5 {[%emt 0:04:38]} Nd4 {[%emt 0:01:34]} 34. Kg2 {[%emt 0:01:34]} Nxc6 {[%emt 0:00:53]} 35. Rxc6 {[%emt 0:00:01]} Kxh4 {[%emt 0:03:08]} 36. Ne4 {[%emt 0:01:31]} Rab8 {[%emt 0:03:24]} 37. Rc4 {[%emt 0:07:33]} Kh5 {[%emt 0:00:48]} 38. Kg3 {[%emt 0:00:18]} Rec8 {[%emt 0:01:14]} 39. Nc5 {[%emt 0:00:11]} g5 {[%emt 0:03:10]} 40. Re4 {[%emt 0:01:41]} a5 {[%emt 0:00:34]} 41. Rxe5 {[%emt 0:30:37]} Rxb4 {[%emt 0:33:09]} 42. Ne4 {[%emt 0:00:54]} a4 {[%emt 0:00:00]} 43. Re6 {[%emt 0:00:00]} a3 {[%emt 0:00:00]} 44. f3 {[%emt 0:00:00]} Rxe4 {[%emt 0:00:00]} 45. Rxe4 {[%emt 0:00:00]} Ra8 {[%emt 0:00:00]} 46. Re1 {[%emt 0:00:00]} a2 {[%emt 0:00:00]} 47. Ra1 {[%emt 0:00:00]} Ra3 {[%emt 0:00:00]} 48. Kf2 {[%emt 0:00:00]} Kg6 {[%emt 0:00:00]} 0-1

[Event "55th Biel Festival MTO 2022"]
[Site "Biel"]
[Date "2022.07.15"]
[Round "1.28"]
[White "Pavlovic Milos"]
[Black "Collin Moritz Valentin"]
[Result "1-0"]
[ECO "A33"]
[WhiteElo "2461"]
[BlackElo "2129"]
[Annotator "ChessBase"]
[PlyCount "65"]
[EventDate "2022.07.13"]
[EventType "swiss"]
[EventCountry "SUI"]
[SourceTitle "playchess.com"]
[Source "ChessBase"]
[SourceQuality "1"]
[TimeControl "40/5400+30:1800+30"]

1. Nf3 {[%emt 0:00:04]} Nf6 {[%emt 0:00:10]} 2. c4 {[%emt 0:00:24]} e6 {[%emt 0:00:44]} 3. g3 {[%emt 0:02:26]} c5 {[%emt 0:01:49]} 4. Bg2 {[%emt 0:00:14]} Nc6 {[%emt 0:01:24]} 5. O-O {[%emt 0:00:21]} Be7 {[%emt 0:00:55]} 6. d4 {[%emt 0:00:27]} cxd4 {[%emt 0:01:03]} 7. Nxd4 {[%emt 0:00:07]} O-O {[%emt 0:00:50]} 8. Nc3 {[%emt 0:00:11]} a6 {[%emt 0:04:42]} 9. Bf4 {[%emt 0:02:07]} Nxd4 {[%emt 0:09:42]} 10. Qxd4 {[%emt 0:00:07]} d6 {[%emt 0:01:12]} 11. Qd3 {[%emt 0:04:13]} Qc7 {[%emt 0:02:51]} 12. Rfd1 {[%emt 0:00:55]} Rd8 {[%emt 0:00:39]} 13. Rac1 {[%emt 0:00:25]} Nh5 {[%emt 0:13:01]} 14. Be3 {[%emt 0:01:53]} Bd7 {[%emt 0:03:13]} 15. Qe4 {[%emt 0:04:35]} Bc6 {[%emt 0:05:29]} 16. Nd5 {[%emt 0:00:17]} Qd7 {[%emt 0:01:43]} 17. Bb6 {[%emt 0:20:50]} Rdc8 {[%emt 0:09:28]} 18. Nxe7+ {[%emt 0:02:29]} Qxe7 {[%emt 0:00:24]} 19. Qd4 {[%emt 0:07:44]} Bxg2 {[%emt 0:02:12]} 20. Kxg2 {[%emt 0:00:07]} Rc6 {[%emt 0:01:21]} 21. Ba5 {[%emt 0:10:22]} b6 {[%emt 0:09:06]} 22. Bb4 {[%emt 0:02:30]} Rd8 {[%emt 0:02:01]} 23. Qe4 {[%emt 0:03:22]} Qc7 {[%emt 0:01:43]} 24. c5 {[%emt 0:11:57]} Qc8 {[%emt 0:10:18]} 25. Qf3 {[%emt 0:06:46]} g6 {[%emt 0:05:56]} 26. g4 {[%emt 0:08:54]} Ng7 {[%emt 0:00:14]} 27. Bc3 {[%emt 0:05:44]} Rxc5 {[%emt 0:01:35]} 28. b4 {[%emt 0:00:25]} Rc4 {[%emt 0:07:00]} 29. Qf6 {[%emt 0:00:11]} Rxc3 {[%emt 0:00:54]} 30. Rxc3 {[%emt 0:00:39]} Qd7 {[%emt 0:00:56]} 31. Rdc1 {[%emt 0:02:23]} e5 {[%emt 0:00:57]} 32. Qxd8+ {[%emt 0:00:19]} Qxd8 {[%emt 0:00:13]} 33. Rc8 {[%emt 0:00:30]} 1-0

[Event "55th Biel Festival MTO 2022"]
[Site "Biel"]
[Date "2022.07.15"]
[Round "1.31"]
[White "Nguyen Thu Giang"]
[Black "Panjwani Raja"]
[Result "0-1"]
[ECO "B27"]
[WhiteElo "2119"]
[BlackElo "2450"]
[Annotator "ChessBase"]
[PlyCount "52"]
[EventDate "2022.07.13"]
[EventType "swiss"]
[EventCountry "SUI"]
[SourceTitle "playchess.com"]
[Source "ChessBase"]
[SourceQuality "1"]
[TimeControl "40/5400+30:1800+30"]

1. e4 {[%emt 0:00:06]} c5 {[%emt 0:00:11]} 2. Nf3 {[%emt 0:00:31]} g6 {[%emt 0:00:11]} 3. c3 {[%emt 0:01:08]} d5 {[%emt 0:00:12]} 4. Bb5+ {[%emt 0:03:40]} Bd7 {[%emt 0:00:32]} 5. Bxd7+ {[%emt 0:05:26]} Qxd7 {[%emt 0:00:08]} 6. Ne5 {[%emt 0:04:10]} Qe6 {[%emt 0:06:18]} 7. Qa4+ {[%emt 0:01:54]} Nc6 {[%emt 0:00:47]} 8. Nxc6 {[%emt 0:05:35]} Qxc6 {[%emt 0:03:12]} 9. Qxc6+ {[%emt 0:00:17]} bxc6 {[%emt 0:00:06]} 10. d3 {[%emt 0:00:12]} Nf6 {[%emt 0:01:15]} 11. Nd2 {[%emt 0:12:12]} Bh6 {[%emt 0:02:41]} 12. f3 {[%emt 0:01:57]} Rb8 {[%emt 0:06:09]} 13. b3 {[%emt 0:07:22]} Nd7 {[%emt 0:17:17]} 14. Nf1 {[%emt 0:22:24]} Bg7 {[%emt 0:24:45]} 15. Bb2 {[%emt 0:03:45]} f5 {[%emt 0:00:31]} 16. Ne3 {[%emt 0:03:58]} e6 {[%emt 0:00:30]} 17. O-O {[%emt 0:00:30]} Ne5 {[%emt 0:00:30]} 18. d4 {[%emt 0:00:30]} cxd4 {[%emt 0:00:30]} 19. cxd4 {[%emt 0:00:30]} Nd3 {[%emt 0:00:30]} 20. e5 {[%emt 0:00:30]} c5 {[%emt 0:00:30]} 21. f4 {[%emt 0:00:30]} cxd4 {[%emt 0:00:30]} 22. Nc2 {[%emt 0:00:30]} Bf8 {[%emt 0:00:30]} 23. Nxd4 {[%emt 0:00:39]} Kd7 {[%emt 0:06:27]} 24. Rf3 {[%emt 0:09:43]} Be7 {[%emt 0:01:42]} 25. g3 {[%emt 0:00:19]} g5 {[%emt 0:09:47]} 26. Kf1 {[%emt 0:02:44]} Rhg8 {[%emt 0:03:56]} 0-1

[Event "55th Biel Festival MTO 2022"]
[Site "Biel"]
[Date "2022.07.15"]
[Round "1.33"]
[White "Jarmany John"]
[Black "Gurel Ediz"]
[Result "0-1"]
[ECO "D10"]
[WhiteElo "2111"]
[BlackElo "2435"]
[Annotator "ChessBase"]
[PlyCount "51"]
[EventDate "2022.07.13"]
[EventType "swiss"]
[EventCountry "SUI"]
[SourceTitle "playchess.com"]
[Source "ChessBase"]
[SourceQuality "1"]
[TimeControl "40/5400+30:1800+30"]

1. d4 {[%emt 0:00:12]} d5 {[%emt 0:00:14]} 2. c4 {[%emt 0:00:04]} c6 {[%emt 0:00:05]} 3. cxd5 {[%emt 0:00:03]} cxd5 {[%emt 0:00:05]} 4. Bf4 {[%emt 0:00:03]} Nc6 {[%emt 0:00:30]} 5. Nc3 {[%emt 0:00:06]} Nf6 {[%emt 0:00:39]} 6. e3 {[%emt 0:00:08]} Bf5 {[%emt 0:01:24]} 7. Bd3 {[%emt 0:03:37]} Bxd3 {[%emt 0:01:17]} 8. Qxd3 {[%emt 0:00:02]} e6 {[%emt 0:00:08]} 9. Nge2 {[%emt 0:02:22]} Bd6 {[%emt 0:06:38]} 10. O-O {[%emt 0:10:36]} O-O {[%emt 0:00:04]} 11. Rad1 {[%emt 0:00:30]} Rc8 {[%emt 0:02:37]} 12. f3 {[%emt 0:02:33]} Bxf4 {[%emt 0:06:05]} 13. Nxf4 {[%emt 0:00:10]} Qb6 {[%emt 0:00:16]} 14. Qb5 {[%emt 0:04:13]} Qc7 {[%emt 0:06:12]} 15. Qe2 {[%emt 0:04:34]} Rfd8 {[%emt 0:06:05]} 16. Rfe1 {[%emt 0:30:49]} Ne8 {[%emt 0:40:37]} 17. Nd3 {[%emt 0:00:30]} Nd6 {[%emt 0:00:30]} 18. f4 {[%emt 0:00:30]} Qa5 {[%emt 0:00:30]} 19. Nc1 {[%emt 0:00:30]} Qb6 {[%emt 0:00:30]} 20. Na4 {[%emt 0:00:30]} Qa5 {[%emt 0:00:30]} 21. Nc3 {[%emt 0:00:30]} Qc7 {[%emt 0:00:30]} 22. Rf1 {[%emt 0:04:40]} Qe7 {[%emt 0:02:01]} 23. Qd2 {[%emt 0:16:00]} f5 {[%emt 0:08:10]} 24. Qe2 {[%emt 0:03:39]} h6 {[%emt 0:04:26]} 25. h4 {[%emt 0:14:50]} Kh7 {[%emt 0:00:07]} 26. h5 {[%emt 0:00:31]} 0-1

[Event "55th Biel Festival MTO 2022"]
[Site "Biel"]
[Date "2022.07.15"]
[Round "1.35"]
[White "Akshit Kumar J"]
[Black "Souleidis Georgios"]
[Result "1/2-1/2"]
[ECO "B11"]
[WhiteElo "2103"]
[BlackElo "2426"]
[Annotator "ChessBase"]
[PlyCount "71"]
[EventDate "2022.07.13"]
[EventType "swiss"]
[EventCountry "SUI"]
[SourceTitle "playchess.com"]
[Source "ChessBase"]
[SourceQuality "1"]
[TimeControl "40/5400+30:1800+30"]

1. e4 {[%emt 0:00:13]} c6 {[%emt 0:00:16]} 2. Nc3 {[%emt 0:00:07]} d5 {[%emt 0:00:12]} 3. Nf3 {[%emt 0:00:07]} Bg4 {[%emt 0:00:21]} 4. h3 {[%emt 0:00:18]} Bxf3 {[%emt 0:00:04]} 5. Qxf3 {[%emt 0:00:06]} e6 {[%emt 0:00:07]} 6. d3 {[%emt 0:00:38]} Nd7 {[%emt 0:00:27]} 7. Be2 {[%emt 0:04:20]} Bc5 {[%emt 0:09:06]} 8. O-O {[%emt 0:02:00]} Ne7 {[%emt 0:01:04]} 9. Rd1 {[%emt 0:13:52]} d4 {[%emt 0:04:09]} 10. Nb1 {[%emt 0:01:19]} Ng6 {[%emt 0:00:20]} 11. Qg3 {[%emt 0:07:31]} O-O {[%emt 0:15:49]} 12. Nd2 {[%emt 0:23:10]} e5 {[%emt 0:04:22]} 13. Nf3 {[%emt 0:00:30]} Qe7 {[%emt 0:09:06]} 14. h4 {[%emt 0:03:16]} Bd6 {[%emt 0:02:54]} 15. Re1 {[%emt 0:09:21]} c5 {[%emt 0:02:02]} 16. h5 {[%emt 0:04:50]} Nf4 {[%emt 0:00:19]} 17. Nh4 {[%emt 0:00:53]} Rfe8 {[%emt 0:02:38]} 18. Nf5 {[%emt 0:03:45]} Qf6 {[%emt 0:01:39]} 19. Qg4 {[%emt 0:03:05]} Nf8 {[%emt 0:18:58]} 20. g3 {[%emt 0:03:20]} Nxe2+ {[%emt 0:00:07]} 21. Rxe2 {[%emt 0:00:03]} g6 {[%emt 0:02:16]} 22. Bh6 {[%emt 0:06:47]} Bc7 {[%emt 0:03:10]} 23. f4 {[%emt 0:04:45]} Ne6 {[%emt 0:04:39]} 24. Rf1 {[%emt 0:03:45]} Kh8 {[%emt 0:08:17]} 25. hxg6 {[%emt 0:00:07]} fxg6 {[%emt 0:00:03]} 26. Nh4 {[%emt 0:00:51]} Rg8 {[%emt 0:02:26]} 27. Bg5 {[%emt 0:02:17]} Nxg5 {[%emt 0:00:46]} 28. fxg5 {[%emt 0:00:02]} Qb6 {[%emt 0:03:09]} 29. Rf7 {[%emt 0:00:42]} Raf8 {[%emt 0:01:04]} 30. Ref2 {[%emt 0:00:44]} Rxf7 {[%emt 0:02:46]} 31. Rxf7 {[%emt 0:00:03]} Qd6 {[%emt 0:02:31]} 32. Qh3 {[%emt 0:01:00]} Rg7 {[%emt 0:00:35]} 33. Qc8+ {[%emt 0:01:27]} Bd8 {[%emt 0:00:31]} 34. Rf6 {[%emt 0:01:13]} Qc7 {[%emt 0:00:16]} 35. Rf8+ {[%emt 0:01:29]} Rg8 {[%emt 0:00:30]} 36. Nf3 {[%emt 0:00:00]} 1/2-1/2

[Event "55th Biel Festival MTO 2022"]
[Site "Biel"]
[Date "2022.07.15"]
[Round "1.37"]
[White "Jaggy Matteo"]
[Black "Korley Kassa"]
[Result "0-1"]
[ECO "E04"]
[WhiteElo "2093"]
[BlackElo "2421"]
[Annotator "ChessBase"]
[PlyCount "64"]
[EventDate "2022.07.13"]
[EventType "swiss"]
[EventCountry "SUI"]
[SourceTitle "playchess.com"]
[Source "ChessBase"]
[SourceQuality "1"]
[TimeControl "40/5400+30:1800+30"]

1. d4 {[%emt 0:00:07]} d5 {[%emt 0:00:03]} 2. c4 {[%emt 0:00:09]} e6 {[%emt 0:00:04]} 3. Nf3 {[%emt 0:00:08]} a6 {[%emt 0:00:07]} 4. g3 {[%emt 0:02:10]} dxc4 {[%emt 0:00:26]} 5. a4 {[%emt 0:02:42]} Nc6 {[%emt 0:02:08]} 6. Bg2 {[%emt 0:03:16]} Nf6 {[%emt 0:00:28]} 7. O-O {[%emt 0:02:17]} Rb8 {[%emt 0:00:08]} 8. Bg5 {[%emt 0:15:44]} Be7 {[%emt 0:00:08]} 9. e3 {[%emt 0:03:19]} b5 {[%emt 0:01:17]} 10. axb5 {[%emt 0:05:51]} axb5 {[%emt 0:00:02]} 11. Nc3 {[%emt 0:02:52]} O-O {[%emt 0:00:28]} 12. Qe2 {[%emt 0:02:57]} Nb4 {[%emt 0:16:21]} 13. Ra5 {[%emt 0:17:50]} Bd7 {[%emt 0:08:29]} 14. Ne5 {[%emt 0:05:40]} Be8 {[%emt 0:00:50]} 15. Rfa1 {[%emt 0:02:52]} h6 {[%emt 0:00:28]} 16. Bxf6 {[%emt 0:05:08]} Bxf6 {[%emt 0:00:32]} 17. Nf3 {[%emt 0:17:01]} Be7 {[%emt 0:06:58]} 18. b3 {[%emt 0:07:07]} Nd5 {[%emt 0:08:54]} 19. Nxd5 {[%emt 0:01:53]} exd5 {[%emt 0:00:06]} 20. bxc4 {[%emt 0:00:15]} dxc4 {[%emt 0:04:33]} 21. Ne5 {[%emt 0:00:20]} c3 {[%emt 0:00:58]} 22. Nc6 {[%emt 0:00:44]} Bxc6 {[%emt 0:00:06]} 23. Bxc6 {[%emt 0:00:04]} b4 {[%emt 0:00:24]} 24. Qd3 {[%emt 0:00:37]} Rb6 {[%emt 0:04:38]} 25. Ra8 {[%emt 0:01:19]} Qd6 {[%emt 0:02:32]} 26. Rxf8+ {[%emt 0:00:04]} Bxf8 {[%emt 0:00:05]} 27. Ba4 {[%emt 0:00:57]} Ra6 {[%emt 0:03:30]} 28. Qc2 {[%emt 0:00:15]} c5 {[%emt 0:06:29]} 29. dxc5 {[%emt 0:00:12]} Qd2 {[%emt 0:00:31]} 30. Qxd2 {[%emt 0:01:09]} cxd2 {[%emt 0:00:07]} 31. c6 {[%emt 0:00:21]} Rxa4 {[%emt 0:00:05]} 32. Rd1 {[%emt 0:00:13]} Ra2 {[%emt 0:00:47]} 0-1

[Event "55th Biel Festival MTO 2022"]
[Site "Biel"]
[Date "2022.07.15"]
[Round "2.1"]
[White "Yu Yangyi"]
[Black "Pavlovic Milos"]
[Result "1/2-1/2"]
[ECO "D35"]
[WhiteElo "2720"]
[BlackElo "2461"]
[Annotator "ChessBase"]
[PlyCount "103"]
[EventDate "2022.07.13"]
[EventType "swiss"]
[EventCountry "SUI"]
[SourceTitle "playchess.com"]
[Source "ChessBase"]
[SourceQuality "1"]
[TimeControl "40/5400+30:1800+30"]

1. d4 {[%emt 0:00:08]} Nf6 {[%emt 0:00:20]} 2. c4 {[%emt 0:00:10]} e6 {[%emt 0:00:17]} 3. Nc3 {[%emt 0:00:28]} d5 {[%emt 0:03:27]} 4. cxd5 {[%emt 0:04:19]} exd5 {[%emt 0:00:06]} 5. Bg5 {[%emt 0:00:10]} c6 {[%emt 0:00:09]} 6. e3 {[%emt 0:02:47]} Be7 {[%emt 0:00:21]} 7. Bd3 {[%emt 0:00:08]} Nbd7 {[%emt 0:00:08]} 8. Bf4 {[%emt 0:08:52]} O-O {[%emt 0:10:44]} 9. h3 {[%emt 0:00:18]} b5 {[%emt 0:18:25]} 10. Nf3 {[%emt 0:00:27]} b4 {[%emt 0:02:13]} 11. Na4 {[%emt 0:04:13]} Qa5 {[%emt 0:00:17]} 12. O-O {[%emt 0:00:35]} Ba6 {[%emt 0:00:14]} 13. Bxa6 {[%emt 0:02:56]} Qxa6 {[%emt 0:00:13]} 14. Bg5 {[%emt 0:01:16]} Bd6 {[%emt 0:04:49]} 15. Nd2 {[%emt 0:03:09]} Ne4 {[%emt 0:20:00]} 16. Nxe4 {[%emt 0:00:20]} dxe4 {[%emt 0:00:07]} 17. Rc1 {[%emt 0:01:46]} Rac8 {[%emt 0:03:33]} 18. Qb3 {[%emt 0:01:42]} Rfe8 {[%emt 0:14:03]} 19. Rc4 {[%emt 0:12:47]} Nb6 {[%emt 0:03:18]} 20. Nxb6 {[%emt 0:02:37]} axb6 {[%emt 0:00:11]} 21. Bf4 {[%emt 0:05:10]} Bf8 {[%emt 0:02:45]} 22. Rfc1 {[%emt 0:00:41]} c5 {[%emt 0:00:09]} 23. dxc5 {[%emt 0:00:08]} bxc5 {[%emt 0:00:39]} 24. a3 {[%emt 0:00:42]} bxa3 {[%emt 0:07:37]} 25. bxa3 {[%emt 0:00:35]} Rc6 {[%emt 0:01:56]} 26. Rb1 {[%emt 0:05:20]} Rb6 {[%emt 0:03:00]} 27. Qxb6 {[%emt 0:00:07]} Qxc4 {[%emt 0:00:02]} 28. Qc6 {[%emt 0:04:51]} Qe6 {[%emt 0:00:41]} 29. Rb6 {[%emt 0:04:57]} Qxc6 {[%emt 0:02:57]} 30. Rxc6 {[%emt 0:00:01]} f6 {[%emt 0:00:47]} 31. Ra6 {[%emt 0:09:22]} c4 {[%emt 0:01:38]} 32. Rc6 {[%emt 0:00:10]} Bxa3 {[%emt 0:00:06]} 33. Rxc4 {[%emt 0:00:04]} h5 {[%emt 0:00:22]} 34. g4 {[%emt 0:02:36]} hxg4 {[%emt 0:00:32]} 35. hxg4 {[%emt 0:00:03]} Kf7 {[%emt 0:00:31]} 36. Kg2 {[%emt 0:00:02]} g6 {[%emt 0:01:06]} 37. Ra4 {[%emt 0:00:17]} Bf8 {[%emt 0:00:08]} 38. Ra5 {[%emt 0:00:10]} Re6 {[%emt 0:00:26]} 39. Bb8 {[%emt 0:00:38]} Be7 {[%emt 0:00:59]} 40. Ba7 {[%emt 0:00:03]} Bd6 {[%emt 0:00:17]} 41. Bd4 {[%emt 0:30:06]} Re8 {[%emt 0:07:02]} 42. Kf1 {[%emt 0:00:00]} Re7 {[%emt 0:04:23]} 43. Ke2 {[%emt 0:00:00]} Rd7 {[%emt 0:00:30]} 44. Ra8 {[%emt 0:00:00]} f5 {[%emt 0:03:12]} 45. Ra5 {[%emt 0:00:00]} Ke6 {[%emt 0:01:13]} 46. Kf1 {[%emt 0:00:00]} Rh7 {[%emt 0:04:48]} 47. Ra6 {[%emt 0:00:00]} Kd5 {[%emt 0:00:39]} 48. Ra5+ {[%emt 0:00:00]} Ke6 {[%emt 0:00:01]} 49. Bc5 {[%emt 0:00:00]} Bxc5 {[%emt 0:00:19]} 50. Rxc5 {[%emt 0:00:00]} Kf6 {[%emt 0:00:05]} 51. gxf5 {[%emt 0:00:00]} gxf5 {[%emt 0:00:03]} 52. Ke2 {[%emt 0:00:00]} 1/2-1/2

[Event "55th Biel Festival MTO 2022"]
[Site "Biel"]
[Date "2022.07.15"]
[Round "2.2"]
[White "Prraneeth Vuppala"]
[Black "Alekseenko Kirill"]
[Result "1-0"]
[ECO "B90"]
[WhiteElo "2457"]
[BlackElo "2708"]
[Annotator "ChessBase"]
[PlyCount "75"]
[EventDate "2022.07.13"]
[EventType "swiss"]
[EventCountry "SUI"]
[SourceTitle "playchess.com"]
[Source "ChessBase"]
[SourceQuality "1"]
[TimeControl "40/5400+30:1800+30"]

1. e4 {[%emt 0:00:09]} c5 {[%emt 0:00:33]} 2. Nf3 {[%emt 0:00:21]} d6 {[%emt 0:00:30]} 3. d4 {[%emt 0:00:31]} cxd4 {[%emt 0:00:24]} 4. Nxd4 {[%emt 0:00:15]} Nf6 {[%emt 0:00:28]} 5. Nc3 {[%emt 0:00:24]} a6 {[%emt 0:00:32]} 6. f3 {[%emt 0:01:48]} e5 {[%emt 0:02:13]} 7. Nb3 {[%emt 0:00:17]} Be7 {[%emt 0:01:36]} 8. Be3 {[%emt 0:01:08]} Be6 {[%emt 0:02:39]} 9. Qd2 {[%emt 0:01:39]} h5 {[%emt 0:01:40]} 10. Be2 {[%emt 0:01:55]} Nbd7 {[%emt 0:02:07]} 11. Nd5 {[%emt 0:00:51]} Bxd5 {[%emt 0:00:52]} 12. exd5 {[%emt 0:00:10]} Qc7 {[%emt 0:00:25]} 13. Rc1 {[%emt 0:01:12]} h4 {[%emt 0:00:51]} 14. O-O {[%emt 0:02:19]} Nh5 {[%emt 0:01:01]} 15. Rfd1 {[%emt 0:02:01]} O-O {[%emt 0:03:55]} 16. a4 {[%emt 0:01:46]} Bd8 {[%emt 0:13:25]} 17. c4 {[%emt 0:09:08]} b6 {[%emt 0:02:52]} 18. a5 {[%emt 0:00:42]} bxa5 {[%emt 0:01:47]} 19. Ra1 {[%emt 0:08:26]} h3 {[%emt 0:05:20]} 20. gxh3 {[%emt 0:16:42]} Qc8 {[%emt 0:09:15]} 21. Nxa5 {[%emt 0:10:32]} Nc5 {[%emt 0:03:31]} 22. b4 {[%emt 0:06:49]} Bxa5 {[%emt 0:05:31]} 23. Bxc5 {[%emt 0:00:11]} dxc5 {[%emt 0:16:17]} 24. Rxa5 {[%emt 0:00:34]} cxb4 {[%emt 0:00:43]} 25. d6 {[%emt 0:06:56]} Qe6 {[%emt 0:09:21]} 26. c5 {[%emt 0:04:25]} Nf4 {[%emt 0:03:01]} 27. Bf1 {[%emt 0:00:39]} Rfd8 {[%emt 0:03:47]} 28. c6 {[%emt 0:12:28]} Rac8 {[%emt 0:01:25]} 29. Rxa6 {[%emt 0:00:35]} b3 {[%emt 0:01:38]} 30. c7 {[%emt 0:02:35]} Rd7 {[%emt 0:00:04]} 31. Kh1 {[%emt 0:02:57]} Kh7 {[%emt 0:01:21]} 32. Rc6 {[%emt 0:02:02]} Qg6 {[%emt 0:02:15]} 33. Qf2 {[%emt 0:02:15]} Qh5 {[%emt 0:04:35]} 34. Ba6 {[%emt 0:01:53]} Nxh3 {[%emt 0:00:44]} 35. Qg3 {[%emt 0:00:26]} Rxd6 {[%emt 0:00:49]} 36. Rdxd6 {[%emt 0:00:29]} b2 {[%emt 0:00:06]} 37. Rd1 {[%emt 0:00:33]} Qf5 {[%emt 0:00:52]} 38. Qh4+ {[%emt 0:00:19]} 1-0

[Event "55th Biel Festival MTO 2022"]
[Site "Biel"]
[Date "2022.07.15"]
[Round "2.5"]
[White "Sargsyan Shant"]
[Black "Krishna C R G"]
[Result "1-0"]
[ECO "D24"]
[WhiteElo "2661"]
[BlackElo "2430"]
[Annotator "ChessBase"]
[PlyCount "73"]
[EventDate "2022.07.13"]
[EventType "swiss"]
[EventCountry "SUI"]
[SourceTitle "playchess.com"]
[Source "ChessBase"]
[SourceQuality "1"]
[TimeControl "40/5400+30:1800+30"]

1. d4 {[%emt 0:04:18]} Nf6 {[%emt 0:00:11]} 2. c4 {[%emt 0:02:19]} e6 {[%emt 0:00:06]} 3. Nf3 {[%emt 0:01:00]} d5 {[%emt 0:00:08]} 4. Nc3 {[%emt 0:00:25]} dxc4 {[%emt 0:00:09]} 5. e4 {[%emt 0:01:04]} Bb4 {[%emt 0:00:08]} 6. Bxc4 {[%emt 0:01:01]} Nxe4 {[%emt 0:00:15]} 7. O-O {[%emt 0:00:12]} Nxc3 {[%emt 0:00:05]} 8. bxc3 {[%emt 0:00:15]} Be7 {[%emt 0:00:03]} 9. Ne5 {[%emt 0:02:57]} O-O {[%emt 0:07:58]} 10. Qg4 {[%emt 0:01:46]} Nd7 {[%emt 0:08:26]} 11. Bh6 {[%emt 0:03:40]} Bf6 {[%emt 0:00:09]} 12. Rfe1 {[%emt 0:02:00]} Qe7 {[%emt 0:17:52]} 13. Rad1 {[%emt 0:08:58]} Re8 {[%emt 0:11:37]} 14. h4 {[%emt 0:04:59]} Nf8 {[%emt 0:08:45]} 15. h5 {[%emt 0:01:32]} Kh8 {[%emt 0:00:22]} 16. Bc1 {[%emt 0:08:55]} h6 {[%emt 0:00:39]} 17. Rd3 {[%emt 0:00:28]} Rd8 {[%emt 0:28:33]} 18. Rg3 {[%emt 0:03:27]} Nh7 {[%emt 0:00:13]} 19. Bd3 {[%emt 0:06:14]} Bxe5 {[%emt 0:10:01]} 20. dxe5 {[%emt 0:04:07]} f5 {[%emt 0:00:11]} 21. exf6 {[%emt 0:00:31]} Nxf6 {[%emt 0:00:03]} 22. Qg6 {[%emt 0:00:31]} Rxd3 {[%emt 0:01:23]} 23. Rxd3 {[%emt 0:10:01]} Bd7 {[%emt 0:00:11]} 24. Qg3 {[%emt 0:07:10]} Bc6 {[%emt 0:02:00]} 25. Qe5 {[%emt 0:05:41]} Re8 {[%emt 0:01:03]} 26. Rg3 {[%emt 0:02:45]} Kh7 {[%emt 0:01:04]} 27. c4 {[%emt 0:01:23]} Qf7 {[%emt 0:00:16]} 28. Bb2 {[%emt 0:00:55]} Re7 {[%emt 0:01:03]} 29. Rh3 {[%emt 0:04:00]} Ng4 {[%emt 0:01:30]} 30. Qe2 {[%emt 0:01:57]} Qf5 {[%emt 0:00:24]} 31. Rg3 {[%emt 0:03:57]} Nf6 {[%emt 0:00:03]} 32. Bxf6 {[%emt 0:00:38]} gxf6 {[%emt 0:00:17]} 33. Rd1 {[%emt 0:03:04]} Be8 {[%emt 0:01:02]} 34. Rd8 {[%emt 0:00:20]} Bxh5 {[%emt 0:00:22]} 35. Qd2 {[%emt 0:01:12]} Bg6 {[%emt 0:00:50]} 36. Rd7 {[%emt 0:00:43]} Qc5 {[%emt 0:00:18]} 37. Qe3 {[%emt 0:00:26]} 1-0